Cogmind - Beta 16 @@@ ROGUE MODE // 2026.01.26 @ 20:30:06 Player: vorsii Result: Destroyed by 43-WPU(R) with Subdweller Machine Gun Performance ------------- Evolutions (0) 0 Regions Visited (2) 400 Robots Destroyed (24) 120 Value Destroyed (585) 585 Prototype IDs (1) 20 Alien Tech Used (0) 0 Bonus (0) 0 TOTAL SCORE: 1125 Bonus ------- None Cogmind --------- Core Integrity 0/250 Matter 90/300 Energy 98/100 System Corruption 0% Temperature Cool (0) Movement Core (1450) Ox28 Location -10/Subcaves Parts ------- > --- POWER (1) -------- (None) > --- PROPULSION (2) --- (None) > --- UTILITY (2) ------ Huge Storage Unit Terrain Scanner > --- WEAPON (2) ------- Improved Light Cannon > --- INVENTORY (25) --- Ion Engine Light Ion Engine Light Nuclear Core Sensor Array Signal Interpreter Targeting Computer ECM Suite Improved Medium Laser Improved Medium Laser Subdweller Beam Cannon Assault Rifle Assault Rifle Heavy Assault Rifle Heavy Assault Rifle Improved Light Cannon Mining Laser Hammer Scrap Shield Fragment (49) Scrap Shield Fragment (48) Peak State ------------ > --- POWER ------------ Ion Engine > --- PROPULSION ------- Light Treads Light Treads > --- UTILITY ---------- Huge Storage Unit Terrain Scanner > --- WEAPON ----------- Improved Light Cannon Improved Light Cannon > --- INVENTORY -------- Light Ion Engine Light Ion Engine Sensor Array Signal Interpreter Targeting Computer ECM Suite Improved Medium Laser Improved Medium Laser Assault Rifle Assault Rifle Heavy Assault Rifle Heavy Assault Rifle Heavy Assault Rifle Heavy Assault Rifle Improved Light Cannon Improved Light Cannon Mining Laser Hammer Scrap Shield Fragment [Rating: 12] Favorites ----------- Power Ion Engine Engine Ion Engine Propulsion Light Treads Treads Light Treads Utility Terrain Scanner Device Terrain Scanner Storage Huge Storage Unit Weapon Improved Light Cannon Energy Gun Medium Laser Ballistic Gun Heavy Assault Rifle Ballistic Cannon Improved Light Cannon Special Weapon Mining Laser Build | -11 -10 -10 ------- Run | Yrd Mat Sub Slots Evolved . | . . . Power . | . . . Propulsion . | . . . Utility . | . . . Weapon . | . . . Parts Attached 18 | 6 7 5 Power 3 | 1 1 1 Engine 3 | 1 1 1 Core . | . . . Reactor . | . . . Propulsion 2 | 2 . . Treads 2 | 2 . . Leg . | . . . Wheel . | . . . Hover . | . . . Flight . | . . . Utility 3 | 1 2 . Device 1 | . 1 . Storage 2 | 1 1 . Processor . | . . . Hackware . | . . . Protection . | . . . Artifact . | . . . Weapon 10 | 2 4 4 Energy Gun 2 | 1 1 . Energy Cannon . | . . . Ballistic Gun 4 | 1 1 2 Ballistic Cannon 3 | . 2 1 Launcher . | . . . Special Weapon 1 | . . 1 Impact Weapon . | . . . Slashing Weapon . | . . . Piercing Weapon . | . . . Special Melee Weapon . | . . . Unidentified Prototypes 1 | . 1 . Parts Lost 7 | . . 7 Power 1 | . . 1 Propulsion 2 | . . 2 Utility . | . . . Weapon 4 | . . 4 Highest Loss Streak 6 | . . 6 To Critical Strikes 1 | . . 1 Average Backups 13 | 3 11 17 Power 1 | 1 1 2 Propulsion . | . . . Utility 2 | . 2 4 Weapon 9 | 1 8 11 Tool/Special . | . . . Unused Backups 12 | . 1 11 Power 1 | . . 1 Propulsion . | . . . Utility 4 | . . 4 Weapon 7 | . 1 6 Tool/Special . | . . . Average Slot Usage (%) 96 | . 95 98 Engine 13 | . 14 13 Treads 27 | . 27 27 Device 11 | . 10 14 Storage 14 | . 14 14 Ballistic Gun 5 | . 3 9 Ballistic Cannon 21 | . 24 16 Peak Build Rating 12 | 6 11 12 Average Rating 10 | 1 9 10 On Entrance 5 | . 6 11 Avg Prop Armor Cover (%) . | . . . Naked Turns . | . . . Heaviest Build 94 | 12 94 94 Greatest Support 40 | 40 40 40 Greatest Overweight (x) 26 | . 2 26 Average Overweight (x) 1 | . 1 2 Largest Inventory Capacity 25 | 8 25 25 Average Capacity 22 | 5 20 25 Most Carried 21 | 5 18 21 Average Carried 14 | 3 11 18 Final Capacity 25 | 8 25 25 Final Carried 19 | 1 18 19 Class Distribution -------------------- 100% | Mutant Dominant Class ---------------- Mutant | -10/Materials Mutant | -10/Subcaves Resources | -11 -10 -10 ----------- Run | Yrd Mat Sub Matter Collected 816 | 254 396 166 Remotely . | . . . Salvage Created 536 | . 468 68 Parts 42 | . 37 5 Haulers Intercepted 1 | . 1 . Recyclers Shooed 2 | . 2 . Parts Field Recycled . | . . . Retrieved Matter . | . . . Parts Self-Destructed 3 | . . 3 Prevented . | . . . Parts Restored . | . . . Kills | -11 -10 -10 ------- Run | Yrd Mat Sub Combat Hostiles Destroyed 15 | . 11 4 Guns 3 | . 2 1 Cannons 12 | . 9 3 Classes Destroyed 9 | . 8 1 Worker 2 | . 2 . Builder 1 | . 1 . Tunneler 1 | . 1 . Hauler 1 | . 1 . Recycler 1 | . 1 . Watcher 3 | . 3 . Swarmer 3 | . 3 . Grunt 9 | . 8 1 Subdweller 3 | . . 3 Best Kill Streak 4 | . 4 1 Combat Bots Only 3 | . 3 1 Max Kills in Single Turn 1 | . 1 1 Gunslinging . | . . . Exploded . | . . . Melee . | . . . Uniques/NPCs Destroyed . | . . . Combat | -11 -10 -10 -------- Run | Yrd Mat Sub Hostile Shots Fired 115 | . 34 81 Missed 32 | . 8 24 Hits 83 | . 26 57 Projectile 83 | . 26 57 Critical Strikes 4 | . 1 3 Damage Taken 1436 | . 308 1128 Core 265 | . 32 233 Absorbed by Shields . | . . . Regen/Repaired (Parts) 55 | . 55 . Core Remaining (%) 100 | 100 . . Volleys Fired 88 | . 39 49 Largest 2 | . 2 2 Hottest 133 | . 66 133 Shots Fired 172 | . 78 94 Gun 37 | . 12 25 Cannon 130 | . 66 64 Launcher . | . . . Special 5 | . . 5 Kinetic 167 | . 78 89 Thermal 5 | . . 5 Explosive . | . . . Electromagnetic . | . . . Robot Hit Streak 33 | . 13 33 Robot Miss Streak 3 | . 3 1 Penetration Max . | . . . Secondary Targets . | . . . Shots Hit Robots 93 | . 49 44 Core Hits 32 | . 24 8 Critical Kills . | . . . Critical Parts Destroyed . | . . . Critical Strikes 5 | . 3 2 Blast 5 | . 3 2 Melee Attacks . | . . . Impact . | . . . Slashing . | . . . Piercing . | . . . Sneak Attacks . | . . . Combat Hostiles . | . . . Follow-up Attacks . | . . . Damage Inflicted 1653 | . 984 669 Guns 310 | . 128 182 Cannons 1343 | . 856 487 Explosions . | . . . Melee . | . . . Ramming . | . . . Kinetic 1653 | . 984 669 Thermal . | . . . Explosive . | . . . Electromagnetic . | . . . Impact . | . . . Slashing . | . . . Piercing . | . . . Highest Corruption . | . . . Average Corruption . | . . . Corruption Purged . | . . . Corruption Blocked . | . . . Overload Shots . | . . . Overflow Damage 7 | . 7 . Projectiles 7 | . 7 . Explosions . | . . . Melee . | . . . Knockbacks 20 | . 9 11 Impact . | . . . Kinetic 18 | . 7 11 Secondary 2 | . 2 . Self-Inflicted Damage . | . . . Shots . | . . . Rammed . | . . . Targets Rammed . | . . . Kicked . | . . . Crushed . | . . . Highest Temperature 51 | . 51 . Average Temperature 11 | . 11 . Received Heat Transfer 306 | . 147 159 Siege Activations . | . . . Martial Activations . | . . . Shielding Activations . | . . . Robots Disrupted . | . . . Combat Hostiles . | . . . Robots Corrupted . | . . . Combat Hostiles . | . . . Parts Fried . | . . . Impact Corruptions . | . . . Robots Melted . | . . . Combat Hostiles . | . . . Parts Melted 1 | . . 1 Heat Transferred . | . . . Parts Sabotaged . | . . . Parts Stolen . | . . . Parts Stripped . | . . . Power Chain Reactions . | . . . Alert | -11 -10 -10 ------- Run | Yrd Mat Sub Maximum Alert Level . | . . . Low Security (%) 100 | 100 100 . Level 1 . | . . . Level 2 . | . . . Level 3 . | . . . Level 4 . | . . . Level 5 . | . . . High Security . | . . . Max Security . | . . . Peak Influence 98 | . 98 . Initial . | . . . Average 19 | . 19 . Influence Increases 410 | . 380 30 Destroy 0b10 Robot/C 240 | . 220 20 Destroy 0b10 Robot/NC 45 | . 45 . Destroy Leader 68 | . 58 10 Successful Hack 5 | . 5 . Disable Machine 30 | . 30 . Destroy Structure 7 | . 7 . Lose Combat Pursuer 15 | . 15 . Influence Decreases 410 | . 354 56 Entered New Map 14 | . . 14 Time Decay 369 | . 354 15 Lost Part 27 | . . 27 Squads Dispatched 2 | . 2 . Investigation 2 | . 2 . Extermination . | . . . Reinforcement . | . . . Assault . | . . . Garrison . | . . . Intercept . | . . . Searches Triggered . | . . . Construction Impeded . | . . . Haulers Reinforced . | . . . Active Scanning Responses . | . . . Cargo Convoy Interrupts . | . . . Stealth | -11 -10 -10 --------- Run | Yrd Mat Sub Distress Signals . | . . . Communications Jammed . | . . . Distress Signals . | . . . Times Spotted 27 | . 17 10 Peak Tracking Total 5 | . 3 5 Tactical Retreats 4 | . 1 3 Traps | -11 -10 -10 ------- Run | Yrd Mat Sub Traps Triggered 2 | . 2 . Indirectly . | . . . Trap Hack Attempts . | . . . Triggered . | . . . Disarmed . | . . . Reprogrammed . | . . . Reused . | . . . Traps Extracted . | . . . Installed . | . . . Triggered . | . . . Machines | -11 -10 -10 ---------- Run | Yrd Mat Sub Machines Disabled 2 | . 2 . Max in Single Turn 1 | . 1 . Machines Repaired . | . . . Machines Dismantled . | . . . Machines Sabotaged . | . . . Overloaded Fab Kills . | . . . Hacking | -11 -10 -10 --------- Run | Yrd Mat Sub Machines Accessed 1 | . 1 . Terminals . | . . . Fabricators . | . . . Repair Stations 1 | . 1 . Recycling Units . | . . . Scanalyzers . | . . . Garrison Access . | . . . Total Hacks 3 | . 3 . Successful 2 | . 2 . Failed 1 | . 1 . Catastrophic . | . . . Database Lockouts . | . . . Manual . | . . . Terminals . | . . . Fabricators . | . . . Repair Stations 3 | . 3 . Recycling Units . | . . . Scanalyzers . | . . . Garrison Access . | . . . Terminal Hacks . | . . . Fabricator Hacks . | . . . Repair Station Hacks 2 | . 2 . Scan Component 1 | . 1 . Repair 1 | . 1 . Recycling Unit Hacks . | . . . Scanalyzer . | . . . Garrison Access Hacks . | . . . Unauthorized Hacks . | . . . Terminals . | . . . Fabricators . | . . . Repair Stations . | . . . Recycling Units . | . . . Scanalyzers . | . . . Garrison Access . | . . . Data Cores Recovered . | . . . Used . | . . . Hacking Detections 1 | . 1 . Full Trace Events . | . . . Feedback Events . | . . . Feedback Blocked . | . . . Robot Schematics Acquired . | . . . Robots Built . | . . . Authchips . | . . . Time . | . . . Total Robot Build Rating . | . . . Part Schematics Acquired . | . . . Parts Built . | . . . Authchips . | . . . Time . | . . . Total Part Build Rating . | . . . Part Studies Acquired . | . . . Parts Repaired 1 | . 1 . Time 26 | . 26 . Parts Recycled . | . . . Recycled Matter . | . . . Retrieved Matter . | . . . Retrieved Components . | . . . Parts Scanalyzed . | . . . Part Schematics Acquired . | . . . Parts Damaged . | . . . Bothacking | -11 -10 -10 ------------ Run | Yrd Mat Sub Used RIF Installer . | . . . Robots Hacked . | . . . Non-combat . | . . . Combat . | . . . Robot Hacks Applied . | . . . Relay Couplers Released . | . . . Fabnet Peak Effective % . | . . . Robots Rewired . | . . . Allies Hacked . | . . . Hacks Repelled . | . . . Allies | -11 -10 -10 -------- Run | Yrd Mat Sub Total Allies . | . . . Largest Group . | . . . Highest-Rated Group . | . . . Highest-Rated Ally . | . . . Total Orders . | . . . Ally Attacks . | . . . Total Damage . | . . . Kills . | . . . Allies Corrupted . | . . . Allies Melted . | . . . Intel | -11 -10 -10 ------- Run | Yrd Mat Sub Active Infowar (turns) 3426 | . 1761 1665 Terrain 3426 | . 1761 1665 Robot Analysis Total . | . . . Derelict Logs Recovered 1 | . . 1 Drone Launches . | . . . Drone Recoveries . | . . . Exploration | -11 -10 -10 ------------- Run | Yrd Mat Sub Turns Passed 4072 | 40 2367 1665 Spaces Moved 1312 | 27 845 440 Core 14 | 13 . 1 Treads 1298 | 14 845 439 Legs . | . . . Wheels . | . . . Hover . | . . . Flight . | . . . Fastest Speed 50 | 50 160 320 Average Speed 275 | 107 255 323 Slowest Speed 1350 | 160 320 1350 Overloaded Moves . | . . . Propulsion Burnouts . | . . . Robots Hopped . | . . . Potential Cave-ins . | . . . Cave-ins Triggered . | . . . Exploration Rate (%) 34 | 4 83 15 Regions Visited 2 Branch Regions 1 Pre-discovered Areas . | . . . Known Exits Taken . | . . . Unknown Exits Taken 2 | 1 1 . Scrap Searched . | . . . Spaces Dug . | . . . Terrain Destroyed 2 | . 2 . Melee . | . . . Projectile 2 | . 2 . AOE . | . . . Terrain Rammed . | . . . Walls Destroyed . | . . . Machines Disabled . | . . . Actions | -11 -10 -10 --------- Run | Yrd Mat Sub Total 1590 | 37 976 577 Wait 136 | . 60 76 Move 1310 | 26 844 440 Hop . | . . . Pick Up 29 | 5 20 4 Fast Attach 3 | 2 1 . Attach 8 | 4 1 3 Detach . | . . . Swap 12 | . 7 5 Drop 4 | . 4 . Fire 88 | . 39 49 Melee . | . . . Ram . | . . . Kick . | . . . Crush . | . . . Escape Stasis . | . . . Rewire . | . . . Trap . | . . . Miscellaneous . | . . . Route ------- -11/Scrapyard -10/Materials (discovered 5 exits: [*Mat x2] / [*Min x2] / [*Sub]) -10/Subcaves (discovered 1 exit: Rec) History --------- Turn | Location | Event 11 | -11/Scrapyard | Discovered new exit (range 16) 41 | -11/Scrapyard | Entered Materials 209 | -10/Materials | Repaired Lgt. Treads 257 | -10/Materials | Discovered new exit (range 15) 307 | -10/Materials | Build established: Mutant 629 | -10/Materials | Discovered new exit (range 12) 1060 | -10/Materials | Discovered new exit (range 5) 1470 | -10/Materials | Discovered new exit (range 14) 1760 | -10/Materials | Discovered new exit (range 16) 2408 | -10/Materials | Entered Subcaves 2415 | -10/Subcaves | Identified exit to Recycling 2772 | -10/Subcaves | Core integrity fell below 50% 4051 | -10/Subcaves | Core integrity fell below 20% 4073 | -10/Subcaves | Destroyed by 43-WPU(R) with Subdweller Machine Gun Last Messages --------------- 04022_ Aluminum Leg fries itself beyond repair. 04022_ YQ-2JH(R) knocked back. 04025_ Acquired 39 matter. 04029_ Lgt. Ion Engine destroyed. 04030_ YQ-2JH(R) knocked back. 04033_ Acquired 3 matter. 04035_ Hvy. Assault Rifle destroyed. 04038_ Sub. Laser melted. 04038_ YQ-2JH(R) destroyed. 04040_ Acquired 12 matter. 04041_ Imp. Light Cannon destroyed. 04043_ Lgt. Treads destroyed. 04045_ Acquired 1 matter. 04051_ 43-WPU(R) affixes Scrap Shield Fragment to Scrap Shield. 04063_ 43-WPU(R) knocked back. 04066_ Critical hit (Destroy). 04066_ Hvy. Assault Rifle destroyed. 04069_ MI-ITZ(R) destroyed. 04071_ 43-WPU(R) knocked back. 04072_ 43-WPU(R) affixes Scrap Shield Fragment to Scrap Shield. Map ----- +----------------------------------------------------+ | ???????????#????### ## """"# #"" # ?? ? | | ??????????????#???##### ## ##" ###? ? | | ????????????##?#??????# ## ""#????? | | ????????????????#????##" ### ""##??#? | | ???????????????##??#?#" #?##" " "####?? | | ??????????#???#?#????# ""####"""" " """ "#?#??? | | ??????????#??#???##?##""" #?# " "" """"###### | | ?????????????????????#""""### """ "" | | ???????????????????#?#""""#?# "" """""" | | ????????????????????##""""### #"#"""" | | ????????????????????#"""""""""" # ####"" | | ?????????????????#??#""##"" """ ### ##" !##??" | | ?????????????#??????#""?# ###?#""### &##?#? # | | ????????????????????# ?############ "### %!#?????? | | ?????????????????#??????##????##?# ## ####???? | | ??????????????????????? ?#????## ## ##?????? | | ?????????????????????? ? ??###?# ## #???#? ? | | ?????????????????????? ??? ? #?###### ##?? ??? | | ???????????????????#??? ? ??? ?##### ##???????? | | ???????????????????#??? ?? ??### ####?????? | | ???????????????#????#??????????## #?#??? ??? | | ?????????????????? ????????##### #?# ? ? ? | | ??????????????????????????###### ##??? ?#??? | | ??????????????????? ?#?### ##???? ????? | | ????????????# ## ##*# ##?##? ?????? | | ???????????# %@R= # ###??????? ?? | | ?????????? ## #%%## ## #??? ??? ? | | ?????????? ???????###%### ## ## #???? ??? | | ????????????????????????## #?## ##### ??? ??? | | ????????????? ?????????## #??# #???? ?#### ????? | | ???????????????????? ???## #### ##?#??##???#?#???? | | ????????????????????? ???# ## ###?????????????? | | ????????????????????????## #???????#?????? | | ????????????? ??????????# ##?????????????? | | ???????????????#????#???# ### ###? ??????????? | | ??????????????????#?????# ######?????? ???????? | | ?????????????????????#??######???#???????????????? | | ?????????????????????#??????##???#???????????????? | | ??????????????????#??????????#?????????#?????????? | | ?????????????????????????#???????????????????????? | | ??????????????????#??#??#???#????????????????????? | | ?????????????????????????????????????????????????? | | ????????????????????#????????????????????????????? | | ???????????????????????????#????????#????????????? | | ????????????????????????????????#????????????????? | | ?????????????????????????????????????????????????? | | ?????????????????????????????????????????????????? | | ?????????????????????????????????????????????????? | | ?????????????????????????????????????????????????? | | ?????????????????????????????????????????????????? | +----------------------------------------------------+ Best States ------------- Heat Dissipation 25 Energy Generation 10 Energy Capacity 250 Matter Stores 300 Matter Capacity 300 Sight Range 16 Terrain Scan Range 14 Terrain Scan Density 10 Evasion (%) 50 Recoil Reduction 2 Item Schematics ----------------- None Robot Schematics ------------------ None Fabricated ------------ Nothing Repaired ---------- Lgt. Treads | 60% | -10/Materials Studied --------- None Alien Tech Used ----------------- None Achievements -------------- None Challenges ------------ None Game ------ Seed PhysicsVampiricKit Manual? 0 Play Time 00:20:20 Cumulative 21.0 hours Start 2026.01.26 @ 20:04:59 End 2026.01.26 @ 20:30:06 Sessions 1 Manual Loads 0 Difficulty Rogue Special Mode None Game No. 30 Rogue 30 Adventurer 0 Explorer 0 Win Type - Total 0 Types 0/0/0/0/0/0/0/0/0/0 Lore% 22 Gallery% 15 Achievement% 16 Wizard Run 0 Options --------- Layout 0 ASCII 0 Keyboard 0 Movement Mouse Keybinds 0 Fullscreen 1 Font 36/Smallcaps Map View 76x50 Zoom Use 0% Tactical HUD 1 Map Filters NONE Filters NONE Steam 1 RUN: b4aec93b-f75d-4884-a49a-c8b188d5a611